[Event "Swedish Chess Championship 2019: Minior-SM"]
[Site "Stiga Sports Arena, Arenatorget 1, Eskilstuna, Sweden, Sweden"]
[Date "2019.07.12"]
[Round "7.2"]
[White "Morell, Ludvig"]
[Black "Tran, Alva Ling"]
[Result "1/2-1/2"]
[TimeControl "90 minutes for 40 moves + 30 minutes for the rest of the game + 30 seconds per move from move one"]
[WhiteFideId "1736779"]
[BlackFideId "1753223"]
[WhiteElo "1744"]
[BlackElo "1712"]

1. e4 {[%clk 01:30:55]} {[%emt 00:00:05]} e5 {[%clk 01:30:50]} {[%emt
00:00:10]} 2. Bc4 {[%clk 01:30:10]} {[%emt 00:01:15]} Nc6 {[%clk 01:30:04]}
{[%emt 00:01:16]} 3. Nf3 {[%clk 01:28:33]} {[%emt 00:02:06]} Bc5 {[%clk
01:28:49]} {[%emt 00:01:45]} 4. c3 {[%clk 01:28:40]} {[%emt 00:00:23]} Nf6
{[%clk 01:28:18]} {[%emt 00:01:02]} 5. d3 {[%clk 01:28:48]} {[%emt 00:00:22]}
h6 {[%clk 01:24:51]} {[%emt 00:03:57]} 6. Bb3 {[%clk 01:28:21]} {[%emt
00:00:57]} d6 {[%clk 01:20:34]} {[%emt 00:04:47]} 7. Nbd2 {[%clk 01:28:05]}
{[%emt 00:00:46]} O-O {[%clk 01:20:12]} {[%emt 00:00:52]} 8. h3 {[%clk
01:26:43]} {[%emt 00:01:52]} Be6 {[%clk 01:16:57]} {[%emt 00:03:46]} 9. Nc4
{[%clk 01:26:42]} {[%emt 00:00:31]} Qe7 {[%clk 01:12:44]} {[%emt 00:04:44]} 10.
Be3 {[%clk 01:23:50]} {[%emt 00:03:21]} Bb6 {[%clk 01:11:46]} {[%emt 00:01:28]}
11. O-O {[%clk 01:18:43]} {[%emt 00:05:36]} Rad8 {[%clk 01:06:14]} {[%emt
00:06:02]} 12. Qd2 {[%clk 01:09:09]} {[%emt 00:10:04]} Bxc4 {[%clk 00:57:04]}
{[%emt 00:09:40]} 13. Bxc4 {[%clk 01:07:28]} {[%emt 00:02:10]} d5 {[%clk
00:54:18]} {[%emt 00:03:17]} 14. exd5 {[%clk 01:03:55]} {[%emt 00:04:02]} Nxd5
{[%clk 00:54:12]} {[%emt 00:00:36]} 15. Bxd5 {[%clk 01:03:36]} {[%emt
00:00:49]} Rxd5 {[%clk 00:54:24]} {[%emt 00:00:18]} 16. Bxb6 {[%clk 01:02:59]}
{[%emt 00:01:07]} axb6 {[%clk 00:54:06]} {[%emt 00:00:48]} 17. Rfe1 {[%clk
01:03:01]} {[%emt 00:00:27]} Rfd8 {[%clk 00:50:06]} {[%emt 00:04:32]} 18. d4
{[%clk 00:59:57]} {[%emt 00:03:34]} R5d6 {[%clk 00:36:58]} {[%emt 00:13:38]} 19.
Qc2 {[%clk 00:50:23]} {[%emt 00:10:02]} Re6 {[%clk 00:34:49]} {[%emt 00:02:40]}
20. dxe5 {[%clk 00:40:34]} {[%emt 00:10:20]} Nxe5 {[%clk 00:25:01]} {[%emt
00:10:17]} 21. Nxe5 {[%clk 00:40:51]} {[%emt 00:00:13]} Rxe5 {[%clk 00:25:03]}
{[%emt 00:00:29]} 22. Rxe5 {[%clk 00:40:35]} {[%emt 00:00:45]} Qxe5 {[%clk
00:25:18]} {[%emt 00:00:15]} 23. Rd1 {[%clk 00:39:44]} {[%emt 00:01:19]} Re8
{[%clk 00:18:08]} {[%emt 00:07:41]} 24. Qd2 {[%clk 00:38:28]} {[%emt 00:01:46]}
Re6 {[%clk 00:15:58]} {[%emt 00:02:41]} 25. f3 {[%clk 00:31:16]} {[%emt
00:07:42]} Qc5+ {[%clk 00:12:44]} {[%emt 00:03:45]} 26. Qf2 {[%clk 00:28:08]}
{[%emt 00:03:37]} Qc4 {[%clk 00:09:18]} {[%emt 00:03:55]} 27. Qc2 {[%clk
00:24:43]} {[%emt 00:03:56]} g6 {[%clk 00:06:43]} {[%emt 00:03:06]} 28. b3
{[%clk 00:23:43]} {[%emt 00:01:29]} Qc5+ {[%clk 00:05:24]} {[%emt 00:01:49]} 29.
Kh1 {[%clk 00:23:12]} {[%emt 00:01:00]} Re3 {[%clk 00:05:06]} {[%emt 00:00:46]}
30. c4 {[%clk 00:22:33]} {[%emt 00:01:11]} Qe5 {[%clk 00:04:52]} {[%emt
00:00:43]} 31. Qd2 {[%clk 00:21:55]} {[%emt 00:01:08]} Kg7 {[%clk 00:03:10]}
{[%emt 00:02:13]} 32. Qd5 {[%clk 00:16:01]} {[%emt 00:06:22]} Qxd5 {[%clk
00:01:27]} {[%emt 00:02:15]} 33. cxd5 {[%emt 00:00:34]} Re7 {[%clk 00:01:00]}
{[%emt 00:00:46]} 34. Kh2 {[%clk 00:15:23]} {[%emt 00:01:13]} Rd7 {[%clk
00:01:10]} {[%emt 00:00:21]} 35. Kg3 {[%emt 00:01:35]} c6 {[%clk 00:00:47]}
{[%emt 00:00:11]} 36. Kf4 {[%clk 00:15:08]} {[%emt 00:00:20]} Kf6 {[%emt
00:01:00]} 37. Ke4 {[%clk 00:14:08]} {[%emt 00:00:53]} c5 {[%clk 00:00:37]}
{[%emt 00:00:49]} 38. h4 {[%clk 00:13:11]} {[%emt 00:01:26]} Ke7 {[%clk
00:00:36]} {[%emt 00:00:32]} 39. f4 {[%clk 00:10:22]} {[%emt 00:03:18]} Kd6
{[%clk 00:00:39]} {[%emt 00:00:28]} 40. g4 {[%clk 00:10:25]} {[%emt 00:00:26]}
Re7+ {[%emt 00:01:10]} 41. Kf3 {[%clk 00:10:00]} {[%emt 00:00:18]} f5 {[%clk
00:27:44]} {[%emt 00:03:23]} 42. gxf5 {[%clk 00:39:18]} {[%emt 00:01:12]} gxf5
{[%clk 00:27:51]} {[%emt 00:00:23]} 43. Rg1 {[%clk 00:38:53]} {[%emt 00:00:55]}
Kxd5 {[%clk 00:27:11]} {[%emt 00:01:10]} 44. Rg6 {[%clk 00:39:12]} {[%emt
00:00:10]} Re6 {[%clk 00:26:06]} {[%emt 00:01:36]} 45. Rg7 {[%clk 00:39:29]}
{[%emt 00:00:13]} Kd4 {[%clk 00:14:14]} {[%emt 00:12:22]} 46. h5 {[%clk
00:38:28]} {[%emt 00:01:30]} Re3+ {[%clk 00:12:19]} {[%emt 00:02:25]} 47. Kf2
{[%clk 00:38:17]} {[%emt 00:00:39]} Rh3 {[%clk 00:12:06]} {[%emt 00:00:45]} 48.
Rxb7 {[%clk 00:38:09]} {[%emt 00:00:38]} Rxh5 {[%clk 00:10:42]} {[%emt
00:01:54]} 49. Kg3 {[%clk 00:38:14]} {[%emt 00:00:24]} Rh1 {[%clk 00:09:57]}
{[%emt 00:01:16]} 50. Rxb6 {[%clk 00:38:18]} {[%emt 00:00:26]} Ra1 {[%clk
00:09:29]} {[%emt 00:00:58]} 51. Rxh6 {[%clk 00:36:57]} {[%emt 00:01:52]} Rxa2
{[%clk 00:09:46]} {[%emt 00:00:12]} 52. Rd6+ {[%clk 00:36:50]} {[%emt
00:00:37]} Kc3 {[%clk 00:08:46]} {[%emt 00:01:31]} 53. Rd5 {[%clk 00:36:49]}
{[%emt 00:00:29]} Ra5 {[%clk 00:07:50]} {[%emt 00:01:26]} 1/2-1/2

[Event "Swedish Chess Championship 2019: Minior-SM"]
[Site "Stiga Sports Arena, Arenatorget 1, Eskilstuna, Sweden, Sweden"]
[Date "2019.07.12"]
[Round "7.3"]
[White "Strom-Engdahl, Alexander"]
[Black "Anfalt, Erik"]
[Result "1-0"]
[TimeControl "90 minutes for 40 moves + 30 minutes for the rest of the game + 30 seconds per move from move one"]
[WhiteFideId "1741586"]
[BlackFideId "1753533"]
[WhiteElo "1866"]
[BlackElo "1511"]

1. c4 {[%clk 01:30:35]} {[%emt 00:00:24]} e5 {[%clk 01:30:57]} {[%emt
00:00:04]} 2. Nc3 {[%clk 01:30:53]} {[%emt 00:00:11]} Nc6 {[%clk 01:31:16]}
{[%emt 00:00:11]} 3. g3 {[%clk 01:31:16]} {[%emt 00:00:07]} f5 {[%clk
01:31:34]} {[%emt 00:00:11]} 4. Bg2 {[%clk 01:31:39]} {[%emt 00:00:07]} Nf6
{[%clk 01:31:55]} {[%emt 00:00:10]} 5. e3 {[%clk 01:31:55]} {[%emt 00:00:14]}
d5 {[%clk 01:31:49]} {[%emt 00:00:36]} 6. Nxd5 {[%clk 01:29:32]} {[%emt
00:02:53]} Nxd5 {[%clk 01:31:09]} {[%emt 00:01:09]} 7. cxd5 {[%clk 01:28:52]}
{[%emt 00:01:09]} Nb4 {[%clk 01:31:27]} {[%emt 00:00:13]} 8. d3 {[%clk
01:20:23]} {[%emt 00:08:59]} Nxd5 {[%clk 01:29:09]} {[%emt 00:02:48]} 9. Bd2
{[%clk 01:19:26]} {[%emt 00:01:26]} c6 {[%clk 01:25:18]} {[%emt 00:04:21]} 10.
Ne2 {[%clk 01:16:18]} {[%emt 00:03:38]} Nb4 {[%clk 01:23:20]} {[%emt 00:02:29]}
11. Bxb4 {[%clk 01:16:23]} {[%emt 00:00:25]} Bxb4+ {[%clk 01:23:48]} {[%emt
00:00:02]} 12. Nc3 {[%clk 01:16:37]} {[%emt 00:00:15]} Qa5 {[%clk 01:21:27]}
{[%emt 00:02:51]} 13. Qc2 {[%clk 01:16:30]} {[%emt 00:00:37]} Be6 {[%clk
01:20:42]} {[%emt 00:01:16]} 14. O-O {[%clk 01:15:28]} {[%emt 00:01:32]} Bxc3
{[%clk 01:21:04]} {[%emt 00:00:08]} 15. bxc3 {[%clk 01:15:51]} {[%emt
00:00:08]} O-O {[%clk 01:20:23]} {[%emt 00:01:11]} 16. Rfb1 {[%clk 01:12:46]}
{[%emt 00:03:35]} Rab8 {[%clk 01:19:12]} {[%emt 00:01:41]} 17. Rb2 {[%clk
01:05:40]} {[%emt 00:07:37]} f4 {[%clk 01:10:22]} {[%emt 00:09:20]} 18. exf4
{[%clk 00:55:56]} {[%emt 00:10:14]} exf4 {[%clk 01:10:44]} {[%emt 00:00:07]} 19.
Re1 {[%clk 00:55:59]} {[%emt 00:00:28]} Bd5 {[%clk 01:09:54]} {[%emt 00:01:20]}
20. Bxd5+ {[%clk 00:55:46]} {[%emt 00:00:43]} Qxd5 {[%clk 01:10:22]} {[%emt
00:00:02]} 21. Qb3 {[%clk 00:56:04]} {[%emt 00:00:12]} Qxb3 {[%clk 01:08:39]}
{[%emt 00:02:13]} 22. Rxb3 {[%clk 00:54:50]} {[%emt 00:01:44]} fxg3 {[%clk
01:09:07]} {[%emt 00:00:02]} 23. hxg3 {[%clk 00:55:13]} {[%emt 00:00:08]} Kf7
{[%clk 01:09:11]} {[%emt 00:00:26]} 24. Ra3 {[%clk 00:54:02]} {[%emt 00:01:41]}
a6 {[%clk 01:09:12]} {[%emt 00:00:29]} 25. Rb3 {[%clk 00:53:36]} {[%emt
00:00:56]} Rfe8 {[%clk 01:08:39]} {[%emt 00:01:03]} 26. Rxe8 {[%clk 00:53:08]}
{[%emt 00:00:58]} Kxe8 {[%clk 01:09:07]} {[%emt 00:00:01]} 27. Kg2 {[%clk
00:53:31]} {[%emt 00:00:07]} Kd7 {[%clk 01:09:05]} {[%emt 00:00:32]} 28. Rb4
{[%clk 00:53:42]} {[%emt 00:00:19]} Kc7 {[%clk 01:06:31]} {[%emt 00:03:04]} 29.
Rf4 {[%clk 00:53:42]} {[%emt 00:00:30]} Rd8 {[%clk 01:06:48]} {[%emt 00:00:13]}
30. d4 {[%clk 00:53:55]} {[%emt 00:00:17]} Kd6 {[%clk 01:06:18]} {[%emt
00:01:00]} 31. Kf3 {[%clk 00:53:38]} {[%emt 00:00:48]} Rd7 {[%clk 01:06:18]}
{[%emt 00:00:29]} 32. Ke3 {[%clk 00:53:54]} {[%emt 00:00:14]} Kd5 {[%clk
01:06:30]} {[%emt 00:00:18]} 33. Rf5+ {[%clk 00:53:49]} {[%emt 00:00:35]} Ke6
{[%clk 01:06:43]} {[%emt 00:00:17]} 34. Rh5 {[%clk 00:53:45]} {[%emt 00:00:34]}
g6 {[%clk 01:07:03]} {[%emt 00:00:10]} 35. Rh1 {[%clk 00:53:08]} {[%emt
00:01:07]} Kd5 {[%clk 01:07:01]} {[%emt 00:00:33]} 36. Kd3 {[%clk 00:53:30]}
{[%emt 00:00:08]} c5 {[%clk 01:07:16]} {[%emt 00:00:15]} 37. c4+ {[%clk
00:52:13]} {[%emt 00:01:47]} Kc6 {[%clk 01:07:28]} {[%emt 00:00:18]} 38. d5+
{[%clk 00:52:39]} {[%emt 00:00:05]} Kc7 {[%clk 01:07:43]} {[%emt 00:00:14]} 39.
a4 {[%clk 00:52:53]} {[%emt 00:00:16]} Kd6 {[%clk 01:06:37]} {[%emt 00:01:36]}
40. a5 {[%clk 00:52:58]} {[%emt 00:00:26]} Rf7 {[%clk 01:05:17]} {[%emt
00:01:49]} 41. f4 {[%clk 00:53:10]} {[%emt 00:00:18]} Re7 {[%clk 01:05:12]}
{[%emt 00:00:35]} 42. Rb1 {[%clk 00:53:23]} {[%emt 00:00:17]} Kc7 {[%clk
01:04:50]} {[%emt 00:00:52]} 43. g4 {[%clk 00:52:28]} {[%emt 00:01:24]} h5
{[%clk 01:04:16]} {[%emt 00:01:04]} 44. gxh5 {[%clk 00:51:57]} {[%emt
00:01:03]} gxh5 {[%clk 01:04:43]} {[%emt 00:00:02]} 45. Rh1 {[%clk 00:52:22]}
{[%emt 00:00:05]} Rh7 {[%clk 01:04:46]} {[%emt 00:00:26]} 46. Ke4 {[%clk
00:51:54]} {[%emt 00:00:59]} b5 {[%clk 01:03:20]} {[%emt 00:01:56]} 47. axb6+
{[%clk 00:50:49]} {[%emt 00:01:35]} Kxb6 {[%clk 01:03:48]} {[%emt 00:00:02]} 48.
f5 {[%clk 00:51:08]} {[%emt 00:00:11]} Ka5 {[%clk 01:04:10]} {[%emt 00:00:08]}
49. d6 {[%clk 00:51:12]} {[%emt 00:00:27]} Kb4 {[%clk 01:04:37]} {[%emt
00:00:03]} 50. Kd5 {[%clk 00:51:38]} {[%emt 00:00:04]} a5 {[%clk 01:02:49]}
{[%emt 00:02:18]} 51. Kc6 {[%clk 00:51:10]} {[%emt 00:00:59]} Kxc4 {[%clk
01:02:16]} {[%emt 00:01:02]} 52. d7 {[%clk 00:51:36]} {[%emt 00:00:04]} Rh8
{[%clk 01:02:14]} {[%emt 00:00:32]} 53. Kc7 {[%clk 00:51:51]} {[%emt 00:00:15]}
a4 {[%clk 01:02:20]} {[%emt 00:00:24]} 54. d8=Q {[%clk 00:52:01]} {[%emt
00:00:20]} Rxd8 {[%clk 01:02:48]} {[%emt 00:00:01]} 55. Kxd8 {[%clk 00:52:24]}
{[%emt 00:00:07]} Kb3 {[%clk 01:03:09]} {[%emt 00:00:09]} 56. f6 {[%clk
00:52:49]} {[%emt 00:00:04]} a3 {[%clk 01:03:27]} {[%emt 00:00:11]} 57. f7
{[%clk 00:53:16]} {[%emt 00:00:04]} c4 {[%clk 01:03:48]} {[%emt 00:00:10]} 58.
f8=Q {[%clk 00:53:41]} {[%emt 00:00:05]} Kb2 {[%clk 01:03:45]} {[%emt
00:00:33]} 59. Qb4+ {[%clk 00:54:01]} {[%emt 00:00:07]} 1-0

[Event "Swedish Chess Championship 2019: Minior-SM"]
[Site "Stiga Sports Arena, Arenatorget 1, Eskilstuna, Sweden, Sweden"]
[Date "2019.07.12"]
[Round "7.4"]
[White "Johansson-Ohman, Linnea"]
[Black "Enholm, Herman"]
[Result "1-0"]
[TimeControl "90 minutes for 40 moves + 30 minutes for the rest of the game + 30 seconds per move from move one"]
[WhiteFideId "1737260"]
[BlackFideId "1744500"]
[WhiteElo "1529"]
[BlackElo "1695"]

1. c4 {[%clk 01:30:59]} Nf6 {[%clk 01:30:36]} {[%emt 06:03:15]} 2. Nc3 {[%clk
01:31:00]} {[%emt 00:00:11]} c5 {[%clk 01:30:18]} {[%emt 00:00:48]} 3. g3
{[%clk 01:31:23]} {[%emt 00:00:06]} e6 {[%clk 01:29:51]} {[%emt 00:00:58]} 4.
Bg2 {[%clk 01:31:29]} {[%emt 00:00:25]} d5 {[%clk 01:28:03]} {[%emt 00:02:17]}
5. cxd5 {[%clk 01:28:44]} {[%emt 00:03:15]} exd5 {[%clk 01:27:59]} {[%emt
00:00:34]} 6. e3 {[%clk 01:28:02]} {[%emt 00:01:13]} Nc6 {[%clk 01:26:50]}
{[%emt 00:01:39]} 7. d4 {[%clk 01:25:10]} {[%emt 00:03:22]} cxd4 {[%clk
01:25:33]} {[%emt 00:01:47]} 8. exd4 {[%clk 01:25:12]} {[%emt 00:00:29]} Bb4
{[%clk 01:24:39]} {[%emt 00:01:22]} 9. Nge2 {[%clk 01:24:41]} {[%emt 00:01:02]}
O-O {[%clk 01:22:44]} {[%emt 00:02:24]} 10. O-O {[%clk 01:23:58]} {[%emt
00:01:14]} Bf5 {[%clk 01:12:38]} {[%emt 00:10:35]} 11. Bg5 {[%clk 01:16:27]}
{[%emt 00:08:02]} Re8 {[%clk 00:46:46]} {[%emt 00:26:22]} 12. Bxf6 {[%clk
01:06:17]} {[%emt 00:10:41]} Qxf6 {[%clk 00:43:54]} {[%emt 00:03:21]} 13. Nxd5
{[%clk 01:05:32]} {[%emt 00:01:16]} Qd6 {[%clk 00:43:05]} {[%emt 00:01:18]} 14.
a3 {[%clk 01:04:12]} {[%emt 00:01:50]} Ba5 {[%clk 00:40:34]} {[%emt 00:02:59]}
15. b4 {[%clk 00:51:01]} {[%emt 00:13:42]} Bb6 {[%clk 00:37:59]} {[%emt
00:03:06]} 16. Rc1 {[%clk 00:40:11]} {[%emt 00:11:19]} Bg4 {[%clk 00:27:13]}
{[%emt 00:11:16]} 17. f3 {[%clk 00:37:25]} {[%emt 00:03:16]} Rxe2 {[%clk
00:10:14]} {[%emt 00:17:28]} 18. Nxb6 {[%clk 00:29:55]} {[%emt 00:08:01]} Rae8
{[%clk 00:06:59]} {[%emt 00:03:45]} 19. Nc4 {[%clk 00:29:16]} {[%emt 00:01:09]}
Qd5 {[%clk 00:06:31]} {[%emt 00:00:57]} 20. Ne5 {[%clk 00:26:11]} {[%emt
00:03:36]} Nxe5 {[%clk 00:05:18]} {[%emt 00:01:44]} 21. dxe5 {[%clk 00:26:37]}
{[%emt 00:00:04]} Qa2 {[%clk 00:04:02]} {[%emt 00:01:45]} 22. Qxe2 {[%clk
00:23:37]} {[%emt 00:03:30]} Qxe2 {[%clk 00:04:08]} {[%emt 00:00:24]} 23. fxg4
{[%clk 00:24:06]} {[%emt 00:00:02]} Qxe5 {[%clk 00:03:34]} {[%emt 00:01:04]} 24.
Bxb7 {[%clk 00:23:17]} {[%emt 00:01:20]} Qe3+ {[%clk 00:02:33]} {[%emt
00:01:30]} 25. Kh1 {[%clk 00:23:37]} {[%emt 00:00:09]} Qd2 {[%clk 00:00:35]}
{[%emt 00:02:28]} 26. Rcd1 {[%clk 00:19:17]} {[%emt 00:04:51]} Qe2 {[%clk
00:00:35]} {[%emt 00:00:31]} 27. Bd5 {[%clk 00:18:49]} {[%emt 00:00:58]} Re7
{[%clk 00:00:32]} {[%emt 00:00:33]} 28. Bxf7+ {[%clk 00:17:59]} {[%emt
00:01:20]} Kh8 {[%clk 00:00:33]} {[%emt 00:00:29]} 29. Rd8+ {[%clk 00:18:14]}
{[%emt 00:00:14]} Re8 {[%clk 00:00:54]} {[%emt 00:00:09]} 30. Rxe8+ {[%clk
00:18:38]} {[%emt 00:00:07]} 1-0

[Event "Swedish Chess Championship 2019: Minior-SM"]
[Site "Stiga Sports Arena, Arenatorget 1, Eskilstuna, Sweden, Sweden"]
[Date "2019.07.12"]
[Round "7.5"]
[White "Mentzoni, Love"]
[Black "Fridman, Arvid"]
[Result "0-1"]
[TimeControl "90 minutes for 40 moves + 30 minutes for the rest of the game + 30 seconds per move from move one"]
[WhiteFideId "1751999"]
[BlackFideId "1758632"]
[WhiteElo "1363"]
[BlackElo "1326"]

1. e4 {[%clk 01:30:58]} {[%emt 00:00:01]} e5 {[%clk 01:30:50]} 2. Nf3 {[%clk
01:30:58]} Nf6 {[%clk 01:30:50]} 3. Nxe5 {[%clk 01:30:58]} d6 {[%clk 01:30:50]}
4. Nf3 {[%clk 01:30:57]} {[%emt 06:00:34]} Nxe4 {[%clk 01:30:18]} 5. Nc3 {[%clk
01:30:43]} {[%emt 00:03:04]} Nxc3 {[%clk 01:31:13]} 6. dxc3 {[%clk 01:30:52]}
{[%emt 00:00:39]} Nc6 {[%clk 01:30:25]} 7. Be3 {[%clk 01:29:42]} {[%emt
00:02:58]} Bg4 {[%clk 01:30:10]} 8. h3 {[%clk 01:25:50]} {[%emt 00:05:08]} Be6
{[%clk 01:27:26]} 9. Qd2 {[%clk 01:24:11]} {[%emt 00:05:23]} a6 {[%clk
01:21:54]} {[%emt 00:06:03]} 10. O-O-O {[%clk 01:18:44]} {[%emt 00:05:55]} Qe7
{[%clk 01:19:38]} {[%emt 00:02:46]} 11. c4 {[%clk 01:11:39]} {[%emt 00:07:35]}
O-O-O {[%clk 01:18:28]} {[%emt 00:01:40]} 12. Bd3 {[%clk 01:07:59]} {[%emt
00:04:07]} Ne5 {[%clk 01:15:38]} {[%emt 00:03:23]} 13. Nxe5 {[%clk 01:04:40]}
{[%emt 00:03:48]} dxe5 {[%clk 01:14:36]} {[%emt 00:01:32]} 14. Qc3 {[%clk
01:02:42]} {[%emt 00:02:28]} Bd7 {[%clk 01:05:25]} {[%emt 00:09:43]} 15. Rhe1
{[%clk 00:57:36]} {[%emt 00:05:36]} Qf6 {[%clk 01:01:15]} {[%emt 00:04:34]} 16.
Be4 {[%clk 00:53:12]} {[%emt 00:04:58]} Be7 {[%emt 00:08:05]} 17. Rd3 {[%clk
00:43:50]} {[%emt 00:08:15]} Bf5 {[%clk 00:53:08]} {[%emt 00:02:41]} 18. Bxf5+
{[%clk 00:42:26]} {[%emt 00:01:54]} Qxf5 {[%clk 00:53:15]} {[%emt 00:00:22]} 19.
Red1 {[%clk 00:41:51]} {[%emt 00:01:05]} Qe4 {[%clk 00:42:42]} {[%emt
00:11:03]} 20. f3 {[%clk 00:37:51]} {[%emt 00:04:30]} Qf5 {[%clk 00:37:49]}
{[%emt 00:05:23]} 21. Rd5 {[%clk 00:34:39]} {[%emt 00:03:41]} Rxd5 {[%clk
00:29:16]} {[%emt 00:09:04]} 22. Rxd5 {[%clk 00:33:38]} {[%emt 00:01:31]} Bf6
{[%clk 00:28:33]} {[%emt 00:01:14]} 23. f4 {[%clk 00:29:35]} {[%emt 00:04:32]}
Re8 {[%clk 00:27:13]} {[%emt 00:01:51]} 24. g4 {[%clk 00:23:29]} {[%emt
00:06:36]} Qe4 {[%clk 00:25:15]} {[%emt 00:02:28]} 25. g5 {[%clk 00:03:44]}
{[%emt 00:20:15]} exf4 {[%clk 00:23:09]} {[%emt 00:02:37]} 26. gxf6 {[%clk
00:03:30]} {[%emt 00:00:43]} fxe3 {[%clk 00:23:38]} {[%emt 00:00:01]} 27. fxg7
{[%clk 00:02:32]} {[%emt 00:01:28]} e2 {[%clk 00:22:36]} {[%emt 00:01:32]} 28.
Qe1 {[%clk 00:01:42]} {[%emt 00:01:19]} Qf4+ {[%clk 00:22:49]} {[%emt
00:00:17]} 29. Rd2 {[%clk 00:00:54]} {[%emt 00:01:18]} Qf1 {[%clk 00:22:43]}
{[%emt 00:00:36]} 30. Rxe2 {[%clk 00:00:48]} {[%emt 00:00:36]} Qxe1+ {[%clk
00:23:01]} {[%emt 00:00:13]} 31. Rxe1 {[%clk 00:01:05]} {[%emt 00:00:13]} Rxe1+
{[%clk 00:23:22]} {[%emt 00:00:08]} 32. Kd2 {[%clk 00:01:32]} {[%emt 00:00:03]}
Rg1 {[%clk 00:23:38]} {[%emt 00:00:13]} 33. g8=B {[%clk 00:01:40]} {[%emt
00:00:23]} Rg7 {[%clk 00:23:46]} {[%emt 00:00:18]} 34. h4 {[%clk 00:01:29]}
{[%emt 00:00:45]} Rxg8 {[%clk 00:24:04]} {[%emt 00:00:13]} 35. b4 {[%clk
00:01:54]} {[%emt 00:00:05]} Rg4 {[%clk 00:24:19]} {[%emt 00:00:15]} 0-1

[Event "Swedish Chess Championship 2019: Minior-SM"]
[Site "Stiga Sports Arena, Arenatorget 1, Eskilstuna, Sweden, Sweden"]
[Date "2019.07.12"]
[Round "7.6"]
[White "Wikman, Viktor"]
[Black "Sandberg, Simon"]
[Result "1-0"]
[TimeControl "90 minutes for 40 moves + 30 minutes for the rest of the game + 30 seconds per move from move one"]
[WhiteFideId "1744720"]
[BlackFideId "1735640"]
[WhiteElo "1633"]
[BlackElo "1421"]

1. e4 {[%clk 01:30:45]} {[%emt 00:00:14]} e6 {[%clk 01:28:24]} {[%emt
00:02:36]} 2. d4 {[%clk 01:31:08]} {[%emt 00:00:06]} d5 {[%clk 01:28:40]}
{[%emt 00:00:16]} 3. Nc3 {[%clk 01:31:26]} {[%emt 00:00:11]} Nf6 {[%clk
01:29:05]} {[%emt 00:00:05]} 4. Bg5 {[%clk 01:31:50]} {[%emt 00:00:05]} Be7
{[%clk 01:29:16]} {[%emt 00:00:20]} 5. e5 {[%clk 01:32:07]} {[%emt 00:00:13]}
Nfd7 {[%clk 01:29:43]} {[%emt 00:00:03]} 6. Bxe7 {[%clk 01:32:27]} {[%emt
00:00:09]} Qxe7 {[%clk 01:30:09]} {[%emt 00:00:04]} 7. f4 {[%clk 01:32:45]}
{[%emt 00:00:12]} a6 {[%clk 01:30:31]} {[%emt 00:00:09]} 8. Nf3 {[%clk
01:32:56]} {[%emt 00:00:18]} O-O {[%clk 01:30:50]} {[%emt 00:00:11]} 9. Bd3
{[%clk 01:33:00]} {[%emt 00:00:26]} c5 {[%clk 01:31:08]} {[%emt 00:00:13]} 10.
Bxh7+ {[%clk 01:27:19]} {[%emt 00:06:10]} Kxh7 {[%clk 01:28:46]} {[%emt
00:02:52]} 11. Ng5+ {[%clk 01:27:01]} {[%emt 00:00:49]} Kg6 {[%clk 01:29:00]}
{[%emt 00:00:16]} 12. Qd3+ {[%clk 01:25:26]} {[%emt 00:02:05]} f5 {[%clk
01:29:08]} {[%emt 00:00:22]} 13. Qh3 {[%clk 01:25:47]} {[%emt 00:00:09]} Nf6
{[%clk 01:29:06]} {[%emt 00:00:29]} 14. exf6 {[%clk 01:26:11]} {[%emt
00:00:09]} Kxf6 {[%clk 01:29:24]} {[%emt 00:00:12]} 15. Nh7+ {[%clk 01:26:15]}
{[%emt 00:00:25]} Kf7 {[%clk 01:29:14]} {[%emt 00:00:41]} 16. Nxf8 {[%clk
01:26:28]} {[%emt 00:00:16]} Qxf8 {[%clk 01:29:34]} {[%emt 00:00:09]} 17. Qh5+
{[%clk 01:26:27]} {[%emt 00:00:32]} g6 {[%clk 01:29:56]} {[%emt 00:00:08]} 18.
Qh7+ {[%clk 01:26:45]} {[%emt 00:00:11]} Qg7 {[%clk 01:30:18]} {[%emt
00:00:08]} 19. Qxg7+ {[%clk 01:27:12]} {[%emt 00:00:03]} Kxg7 {[%clk 01:30:40]}
{[%emt 00:00:08]} 20. O-O-O {[%clk 01:27:33]} {[%emt 00:00:09]} cxd4 {[%clk
01:31:04]} {[%emt 00:00:05]} 21. Rxd4 {[%clk 01:27:55]} {[%emt 00:00:09]} Nc6
{[%clk 01:31:29]} {[%emt 00:00:05]} 22. Rdd1 {[%clk 01:27:41]} {[%emt
00:00:44]} Bd7 {[%clk 01:31:50]} {[%emt 00:00:09]} 23. Na4 {[%clk 01:27:09]}
{[%emt 00:01:02]} Rc8 {[%clk 01:31:49]} {[%emt 00:00:31]} 24. Nc5 {[%clk
01:27:19]} {[%emt 00:00:20]} Be8 {[%clk 01:32:11]} {[%emt 00:00:08]} 25. Nxe6+
{[%clk 01:27:36]} {[%emt 00:00:13]} Kf7 {[%clk 01:32:33]} {[%emt 00:00:08]} 26.
Ng5+ {[%clk 01:27:39]} {[%emt 00:00:27]} Kf6 {[%clk 01:32:53]} {[%emt
00:00:11]} 27. Rxd5 {[%clk 01:27:06]} {[%emt 00:01:03]} Nb4 {[%clk 01:33:13]}
{[%emt 00:00:09]} 28. Rd2 {[%clk 01:27:24]} {[%emt 00:00:12]} Bc6 {[%clk
01:33:31]} {[%emt 00:00:13]} 29. Rhd1 {[%clk 01:22:39]} {[%emt 00:05:14]} Nxa2+
{[%clk 01:33:46]} {[%emt 00:00:16]} 30. Kb1 {[%clk 01:23:04]} {[%emt 00:00:04]}
Nb4 {[%clk 01:34:00]} {[%emt 00:00:16]} 31. c3 {[%clk 01:23:26]} {[%emt
00:00:08]} Nd5 {[%clk 01:34:21]} {[%emt 00:00:09]} 32. Rxd5 {[%clk 01:23:51]}
{[%emt 00:00:04]} Bxd5 {[%clk 01:34:39]} {[%emt 00:00:11]} 33. Rxd5 {[%clk
01:24:16]} {[%emt 00:00:06]} 1-0